Cogmind - Beta 10.2 @@@ ROGUE MODE // 2021.09.29 @ 19:46:23 Player: ktur Result: Self-destructed Performance ------------- Evolutions (1) 500 Regions Visited (3) 600 Robots Destroyed (13) 65 Value Destroyed (333) 333 Prototype IDs (0) 0 Alien Tech Used (0) 0 Bonus (0) 0 TOTAL SCORE: 1498 Bonus ------- None Cogmind --------- Core Integrity 377/400 Matter 236/300 Energy 125/125 System Corruption 0% Temperature Cool (162) Movement Treading (160) Location -9/Materials Parts ------- > --- POWER (1) -------- Light Ion Engine > --- PROPULSION (2) --- Light Treads Light Treads > --- UTILITY (4) ------ Small Storage Unit Weapon Shielding Medium Armor Plating > --- WEAPON (2) ------- Beam Rifle Assault Rifle > --- INVENTORY (6) ---- Ion Engine Light Treads Light Treads Light Assault Rifle Light Assault Rifle Peak State ------------ > --- POWER ------------ Light Ion Engine > --- PROPULSION ------- Light Treads Light Treads > --- UTILITY ---------- Small Storage Unit Weapon Shielding Medium Armor Plating > --- WEAPON ----------- Beam Rifle Assault Rifle > --- INVENTORY -------- Ion Engine Light Treads Aluminum Leg Aluminum Leg Light Assault Rifle Light Assault Rifle [Rating: 10] Favorites ----------- Power Light Ion Engine Engine Light Ion Engine Propulsion Light Treads Treads Light Treads Utility Small Storage Unit Storage Small Storage Unit Protection Medium Armor Plating Weapon Assault Rifle Energy Gun Beam Rifle Ballistic Gun Assault Rifle Build | -11 -10 -10 -9 ------- Run | Scr Mat Min Mat Slots Evolved 2 | . . . 2 Power . | . . . . Propulsion . | . . . . Utility 2 | . . . 2 Weapon . | . . . . Parts Attached 13 | 7 1 . 5 Power 2 | 1 . . 1 Engine 2 | 1 . . 1 Core . | . . . . Reactor . | . . . . Propulsion 3 | 2 . . 1 Treads 3 | 2 . . 1 Leg . | . . . . Wheel . | . . . . Hover . | . . . . Flight . | . . . . Utility 4 | 1 1 . 2 Device . | . . . . Storage 2 | 1 1 . . Processor . | . . . . Hackware . | . . . . Protection 2 | . . . 2 Artifact . | . . . . Weapon 4 | 3 . . 1 Energy Gun 1 | . . . 1 Energy Cannon . | . . . . Ballistic Gun 3 | 3 . . . Ballistic Cannon . | . . . . Launcher . | . . . . Special Weapon . | . . . . Impact Weapon . | . . . . Slashing Weapon . | . . . . Piercing Weapon . | . . . . Special Melee Weapon . | . . . . Unidentified Prototypes . | . . . . Parts Lost 3 | . . . 3 Power 1 | . . . 1 Propulsion 1 | . . . 1 Utility 1 | . . . 1 Weapon . | . . . . Highest Loss Streak 2 | . . . 2 Average Slot Usage (%) 88 | . 94 100 78 Engine 12 | . 14 14 10 Treads 25 | . 28 28 22 Storage 20 | . 22 28 14 Protection 4 | . . . 10 Energy Gun 1 | . . . 3 Ballistic Gun 23 | . 28 28 19 Naked Turns . | . . . . Heaviest Build 20 | 11 12 12 20 Greatest Support 40 | 40 40 40 40 Greatest Overweight (x) . | . . . . Average Overweight (x) . | . . . . Largest Inventory Capacity 6 | 6 6 6 6 Average Capacity 5 | 5 6 6 6 Most Carried 6 | 6 6 6 6 Average Carried 5 | 3 6 6 5 Final Capacity 6 | 6 6 6 6 Final Carried 6 | 6 6 6 5 Class Distribution -------------------- 100% | Mutant Dominant Class ---------------- Mutant | -10/Materials Mutant | -10/Mines Mutant | -9/Materials Resources | -11 -10 -10 -9 ----------- Run | Scr Mat Min Mat Matter Collected 431 | 220 . 85 126 Remotely . | . . . . Salvage Created 423 | . . 133 290 Parts 28 | . . 9 19 Haulers Intercepted 1 | . . . 1 Recyclers Shooed 2 | . . 2 . Parts Field Recycled . | . . . . Retrieved Matter . | . . . . Parts Self-Destructed . | . . . . Prevented . | . . . . Kills | -11 -10 -10 -9 ------- Run | Scr Mat Min Mat Combat Hostiles Destroyed 12 | . . 5 7 Guns 11 | . . 5 6 AOE 1 | . . . 1 Classes Destroyed 4 | . . 2 2 Hauler 1 | . . . 1 Swarmer 6 | . . 3 3 Grunt 5 | . . 2 3 Sentry 1 | . . . 1 Best Kill Streak 4 | . . 3 4 Combat Bots Only 4 | . . 3 4 Max Kills in Single Turn 1 | . . 1 1 Gunslinging . | . . . . Exploded 1 | . . . 1 Melee . | . . . . Uniques/NPCs Destroyed . | . . . . Combat | -11 -10 -10 -9 -------- Run | Scr Mat Min Mat Damage Taken 637 | . . 283 354 Core 60 | . . 37 23 Absorbed by Shields . | . . . . Core Remaining (%) 92 | 100 . 85 . Volleys Fired 38 | . 4 15 19 Largest 2 | . 2 2 2 Hottest 76 | . 40 40 76 Shots Fired 76 | . 8 30 38 Gun 76 | . 8 30 38 Cannon . | . . . . Launcher . | . . . . Special . | . . . . Kinetic 66 | . 8 30 28 Thermal 10 | . . . 10 Explosive . | . . . . Electromagnetic . | . . . . Robot Hit Streak 9 | . 5 8 9 Robot Miss Streak 3 | . 3 2 3 Penetration Max . | . . . . Secondary Targets 5 | . . 3 2 Max Gunslinging Chain 1 | . . 1 1 Shots Hit Robots 50 | . 5 19 26 Core Hits 25 | . 2 8 15 Critical Hits . | . . . . Critical Kills . | . . . . Critical Parts Destroyed . | . . . . Melee Attacks . | . . . . Impact . | . . . . Slashing . | . . . . Piercing . | . . . . Sneak Attacks . | . . . . Combat Hostiles . | . . . . Follow-up Attacks . | . . . . Damage Inflicted 687 | . 63 240 384 Guns 630 | . 63 234 333 Cannons . | . . . . Explosions 49 | . . . 49 Melee . | . . . . Ramming 8 | . . 6 2 Kinetic 517 | . 63 234 220 Thermal 113 | . . . 113 Explosive 49 | . . . 49 Electromagnetic . | . . . . Impact . | . . . . Slashing . | . . . . Piercing . | . . . . Highest Corruption . | . . . . Average Corruption . | . . . . Corruption Purged . | . . . . Overload Shots . | . . . . Overflow Damage 7 | . . . 7 Projectiles . | . . . . Explosions 7 | . . . 7 Melee . | . . . . Knockbacks . | . . . . Impact . | . . . . Kinetic . | . . . . Secondary . | . . . . Self-Inflicted Damage 128 | . . . 128 Shots 2 | . . . 2 Rammed 4 | . . 3 1 Targets Rammed 4 | . . 3 1 Kicked . | . . . . Crushed . | . . . . Highest Temperature 153 | . . 4 153 Average Temperature 41 | . . 2 55 Received Heat Transfer 183 | . . 99 84 Siege Activations . | . . . . Robots Corrupted . | . . . . Combat Hostiles . | . . . . Parts Fried . | . . . . Impact Corruptions . | . . . . Robots Melted . | . . . . Combat Hostiles . | . . . . Parts Melted 1 | . . . 1 Heat Transferred 296 | . . . 296 Parts Sabotaged . | . . . . Parts Stolen . | . . . . Parts Stripped . | . . . . Power Chain Reactions . | . . . . Missiles Intercepted . | . . . . Alert | -11 -10 -10 -9 ------- Run | Scr Mat Min Mat Peak Influence 301 | . 15 140 301 Initial 54 | . . 5 54 Average 93 | . 12 91 177 Maximum Alert Level 1 | . . . 1 Low Security (%) 83 | 100 100 100 58 Level 1 16 | . . . 41 Level 2 . | . . . . Level 3 . | . . . . Level 4 . | . . . . Level 5 . | . . . . High Security . | . . . . Max Security . | . . . . Squads Dispatched 1 | . . . 1 Investigation 1 | . . . 1 Extermination . | . . . . Reinforcement . | . . . . Assault . | . . . . Garrison . | . . . . Intercept . | . . . . Construction Impeded . | . . . . Haulers Reinforced . | . . . . Stealth | -11 -10 -10 -9 --------- Run | Scr Mat Min Mat Distress Signals . | . . . . Communications Jammed . | . . . . Distress Signals . | . . . . Times Spotted 17 | . 2 4 11 Peak Tracking Total 6 | . 1 2 6 Tactical Retreats . | . . . . Traps | -11 -10 -10 -9 ------- Run | Scr Mat Min Mat Traps Triggered . | . . . . Indirectly . | . . . . Trap Hack Attempts . | . . . . Triggered . | . . . . Disarmed . | . . . . Reprogrammed . | . . . . Reused . | . . . . Traps Extracted . | . . . . Installed . | . . . . Triggered . | . . . . Machines | -11 -10 -10 -9 ---------- Run | Scr Mat Min Mat Machines Disabled 3 | . . . 3 Max in Single Turn 2 | . . . 2 Machines Sabotaged . | . . . . Garrisons Compromised . | . . . . Overloaded Fab Kills . | . . . . Fab Network Shutdowns . | . . . . Hacking | -11 -10 -10 -9 --------- Run | Scr Mat Min Mat Machines Accessed 3 | . 2 . 1 Terminals 2 | . 2 . . Fabricators . | . . . . Repair Stations . | . . . . Recycling Units . | . . . . Scanalyzers 1 | . . . 1 Garrison Access . | . . . . Total Hacks 5 | . 4 . 1 Successful 2 | . 1 . 1 Failed 3 | . 3 . . Catastrophic . | . . . . Database Lockouts . | . . . . Manual 5 | . 4 . 1 Terminals 4 | . 4 . . Fabricators . | . . . . Repair Stations . | . . . . Recycling Units . | . . . . Scanalyzers 1 | . . . 1 Garrison Access . | . . . . Terminal Hacks . | . . . . Fabricator Hacks . | . . . . Repair Station Hacks . | . . . . Recycling Unit Hacks . | . . . . Scanalyzer . | . . . . Garrison Access Hacks . | . . . . Unauthorized Hacks 2 | . 1 . 1 Terminals 1 | . 1 . . Operators 1 | . 1 . . Fabricators . | . . . . Repair Stations . | . . . . Recycling Units . | . . . . Scanalyzers 1 | . . . 1 Extract 1 | . . . 1 Garrison Access . | . . . . Data Cores Recovered . | . . . . Used . | . . . . Hacking Detections 2 | . 2 . . Full Trace Events . | . . . . Feedback Events . | . . . . Feedback Blocked . | . . . . Robot Schematics Acquired . | . . . . Robots Built . | . . . . Matter . | . . . . Time . | . . . . Total Robot Build Rating . | . . . . Part Schematics Acquired 5 | . . . 5 Parts Built . | . . . . Matter . | . . . . Time . | . . . . Total Part Build Rating . | . . . . Parts Repaired . | . . . . Time . | . . . . Parts Recycled . | . . . . Recycled Matter . | . . . . Retrieved Matter . | . . . . Retrieved Components . | . . . . Parts Scanalyzed . | . . . . Part Schematics Acquired . | . . . . Parts Damaged . | . . . . Bothacking | -11 -10 -10 -9 ------------ Run | Scr Mat Min Mat Used RIF Installer . | . . . . Robots Hacked . | . . . . Non-combat . | . . . . Combat . | . . . . Robot Hacks Applied . | . . . . Relay Couplers Released . | . . . . Robots Rewired . | . . . . Allies Hacked . | . . . . Hacks Repelled . | . . . . Allies | -11 -10 -10 -9 -------- Run | Scr Mat Min Mat Total Allies . | . . . . Largest Group . | . . . . Highest-Rated Group . | . . . . Highest-Rated Ally . | . . . . Total Orders . | . . . . Ally Attacks . | . . . . Total Damage . | . . . . Kills . | . . . . Allies Corrupted . | . . . . Allies Melted . | . . . . Intel | -11 -10 -10 -9 ------- Run | Scr Mat Min Mat Robot Analysis Total . | . . . . Derelict Logs Recovered . | . . . . Drone Launches . | . . . . Drone Recoveries . | . . . . Exploration | -11 -10 -10 -9 ------------- Run | Scr Mat Min Mat Turns Passed 551 | 75 133 129 214 Spaces Moved 254 | 43 74 50 87 Core 8 | 8 . . . Treads 246 | 35 74 50 87 Legs . | . . . . Wheels . | . . . . Hover . | . . . . Flight . | . . . . Fastest Speed 50 | 50 160 160 160 Average Speed 156 | 139 160 160 160 Slowest Speed 160 | 160 160 160 160 Overloaded Moves . | . . . . Propulsion Burnouts . | . . . . Robots Hopped . | . . . . Cave-ins Triggered . | . . . . Exploration Rate (%) 11 | 3 17 15 10 Regions Visited 3 Branch Regions 1 Pre-discovered Areas . | . . . . Known Exits Taken . | . . . . Unknown Exits Taken 3 | 1 1 1 . Scrap Searched . | . . . . Spaces Dug . | . . . . Terrain Destroyed 51 | . . . 51 Melee . | . . . . Projectile . | . . . . AOE 51 | . . . 51 Terrain Rammed . | . . . . Walls Destroyed . | . . . . Machines Disabled . | . . . . Actions | -11 -10 -10 -9 --------- Run | Scr Mat Min Mat Total 327 | 56 80 67 124 Wait 2 | . 2 . . Move 251 | 42 73 49 87 Hop . | . . . . Pick Up 11 | 6 . . 5 Fast Attach 12 | 6 1 . 5 Attach 1 | 1 . . . Detach 1 | 1 . . . Swap . | . . . . Drop 7 | . . . 7 Fire 38 | . 4 15 19 Melee . | . . . . Ram . | . . . . Kick . | . . . . Crush 4 | . . 3 1 Escape Stasis . | . . . . Rewire . | . . . . Trap . | . . . . Miscellaneous . | . . . . Route ------- -11/Scrapyard -10/Materials -10/Mines -9/Materials History --------- Turn | Location | Event 44 | -11/Scrapyard | Discovered new exit (range 15) 76 | -11/Scrapyard | Entered Materials 198 | -10/Materials | Discovered new exit (range 8) 209 | -10/Materials | Entered Mines 302 | -10/Mines | Build established: Mutant 328 | -10/Mines | Discovered new exit (range 6) 338 | -10/Mines | Entered Materials 338 | -9/Materials | Evolved 2 slots: Utility x2 552 | -9/Materials | Self-destructed Last Messages --------------- 00480_ U-05 Engineer builds a Wall. 00482_ The unstable cave ceiling collapses. 00484_ U-05 Engineer builds a Wall. 00487_ K-01 Serf collects debris. 00488_ U-05 Engineer lays Concrete. 00489_ U-05 Engineer builds a Wall. 00490_ The unstable cave ceiling collapses. 00490_ K-01 Serf collects debris. 00496_ Dropped Assault Rifle. 00497_ Acquired Beam Rifle. 00514_ A-02 Transporter destroyed. 00518_ Slammed into T-07 Excavator. 00523_ Dropped Aluminum Leg. 00526_ Acquired Lgt. Treads. 00530_ Acquired Prototype Engine. 00531_ Dropped Prototype Engine. 00534_ G-47 Trooper destroyed. 00546_ Heat Sink melted. 00546_ G-34 Mercenary destroyed. 00546_ Switching to secondary target: G-47 Trooper. Map ----- +----------------------------------------------------+ | | | | | | | | | | | | | | | | | | | | | | | ########## #???????????????????????????? | | #???????????????????????????? | | = #???????????????????????????? | | """ # #???????????????????????????? | | """ #???????????????????????????? | | """ #???????????????????????????? | | ###???????????????????????????? | | ##+# # /## # # # ???????????????????????? | | = ??????????????????????? | | # ## ??????????????????????? | | ##### ####??????????????????????????? | | ###########+###### #?????????????????????????????? | | ??????# ## ###???????????????????????????? | | ??????# """ ## #############???????????????? | | ??????# """ ## =!! *@%***= ===g!%=????????? | | ??????# """[ [[ + =#############???????????????? | | ??????# [[] ## #???????????????????????????? | | ??????# [[] ## #???????????????????????????? | | ??????# # #??????????????????????????? | | ??????# # T" #??????????????????????????? | | ??????##### ##### " #??????????????????????????? | | ??????????###???# #??????????????????????????? | | ????????????????# #??????????????????????????? | | ????????????????### ###??????????????????????????? | | ??????????????????# #????????????????????????????? | | ??????????????????? ?????????????????????????????? | | ??????????????????? ?????????????????????????????? | | ??????????????????? ?????????????????????????????? | | ???????????????????T?????????????????????????????? | | ?????????????????????????????????????????????????? | | ?????????????????????????????????????????????????? | | ?????????????????????????????????????????????????? | | ?????????????????????????????????????????????????? | | ?????????????????????????????????????????????????? | | ?????????????????????????????????????????????????? | | ?????????????????????????????????????????????????? | | ?????????????????????????????????????????????????? | | ?????????????????????????????????????????????????? | | ?????????????????????????????????????????????????? | +----------------------------------------------------+ Best States ------------- Heat Dissipation 28 Energy Generation 10 Energy Capacity 125 Matter Stores 271 Matter Capacity 350 Sight Range 16 Terrain Scan Density 10 Armor Coverage 225 Weapon Shielding 33 Evasion (%) 50 Recoil Reduction 2 Item Schematics ----------------- Aluminum Leg | -9/Materials | Extracted Hammer | -9/Materials | Extracted Hrd. Light Armor Plating | -9/Materials | Extracted Sml. Matter Pod | -9/Materials | Extracted Imp. Terrain Scanner | -9/Materials | Extracted Robot Schematics ------------------ None Fabricated ------------ Nothing Alien Tech Used ----------------- None Achievements -------------- None Challenges ------------ None Game ------ Seed SpikedRestorationInsulator Manual? 0 Play Time 00:04:18 Cumulative 201.7 hours Start 2021.09.29 @ 19:43:15 End 2021.09.29 @ 19:46:23 Sessions 1 Manual Loads 0 Difficulty Rogue Special Mode None Game No. 257 Rogue 257 Adventurer 0 Explorer 0 Win Type - Total 5 Types 3/0/1/1/0/0/0/0/0 Lore% 78 Gallery% 80 Achievement% 64 Wizard Run 0 Options --------- ASCII 0 Keyboard 0 Movement Arrows Keybinds 0 Fullscreen 1 Font 18/SmallcapsGlow Map View 76x50 Tactical HUD 1 Map Filters NONE Filters NONE Steam 1 RUN: a2c76e70-9a6a-4b1c-a178-14bdf6bd3529